fUSD/lending_fUSD_20250510
["ID","MTS","AMOUNT","RATE_DAILY","PERIOD"]
[360543985,1746873033675,-300.04,0.000195,2]
[360543986,1746873033685,-456.95,0.000195,2]
[360543987,1746873033695,-150.0,0.000195,2]
[360543988,1746873033705,-150.0,0.000195,2]
[360543989,1746873033715,-152.73,0.000195,2]
[360543990,1746873033727,-300.0,0.000195,2]
[360543991,1746873033737,-162.5,0.000195,2]
[360543992,1746873033747,-150.04,0.000195,2]
[360543993,1746873033756,-456.82,0.000195,2]
[360543994,1746873033766,-1155.86,0.000195,2]
[360543995,1746873033775,-452.36,0.000195,2]
[360543996,1746873033785,-1606.2,0.000195,2]
[360543997,1746873033794,-452.36,0.000195,2]
[360543998,1746873033804,-352.59,0.000195,2]
[360543999,1746873033813,-152.37,0.000195,2]
[360544000,1746873033823,-803.1,0.000195,2]
[360544001,1746873033833,-1155.86,0.000195,2]
[360544002,1746873033843,-913.9,0.000195,2]
[360544003,1746873033854,-162.5,0.000195,2]
[360544004,1746873033864,-350.55,0.000195,2]
[360544005,1746873033874,-456.95,0.000195,2]
[360544006,1746873033884,-150.0,0.000195,2]
[360544007,1746873033894,-1155.86,0.000195,2]
[360544008,1746873033904,-306.98,0.000195,2]
[360544009,1746873033914,-797.24,0.000195,2]
[360544010,1746873033925,-162.5,0.000195,2]
[360544011,1746873033936,-311.26,0.000195,2]
[360544012,1746873033950,-452.36,0.000195,2]
[360544013,1746873033959,-150.04,0.000195,2]
[360544014,1746873033970,-705.02,0.000195,2]
[360544015,1746873033983,-1155.86,0.000195,2]
[360544016,1746873033993,-352.59,0.000195,2]
[360544017,1746873034003,-254.3,0.000195,2]
[360544018,1746873034014,-456.95,0.000195,2]
[360544019,1746873034024,-803.1,0.000195,2]
[360544020,1746873034034,-452.36,0.000195,2]
[360544021,1746873034043,-162.5,0.000195,2]
[360544022,1746873034053,-798.28,0.000195,2]
[360544023,1746873034063,-1464.69,0.000195,2]
[360544024,1746873034073,-150.04,0.000195,2]
[360544025,1746873034084,-228.61,0.000195,2]
[360544026,1746873034094,-352.59,0.000195,2]
[360544027,1746873034104,-162.5,0.000195,2]
[360544028,1746873034114,-803.31,0.000195,2]
[360544029,1746873034123,-456.95,0.000195,2]
[360544030,1746873034133,-150.0,0.000195,2]
[360544031,1746873034142,-150.04,0.000195,2]
[360544032,1746873034153,-456.46,0.000195,2]
[360544033,1746873034163,-352.59,0.000195,2]
[360544034,1746873034173,-2311.72,0.000195,2]
[360544035,1746873034184,-162.5,0.000195,2]
[360544036,1746873034194,-904.36,0.000195,2]
[360544037,1746873034203,-452.28,0.000195,2]
[360544038,1746873034213,-1155.86,0.000195,2]
[360544039,1746873034224,-450.0,0.000195,2]
[360544040,1746873034234,-300.0,0.000195,2]
[360544041,1746873034244,-352.59,0.000195,2]
[360544042,1746873034254,-913.77,0.000195,2]
[360544043,1746873034264,-162.5,0.000195,2]
[360544044,1746873034274,-150.0,0.00019552,2]
[360544045,1746873034283,-164.68,0.00019552,2]
[360544046,1746873034293,-352.66,0.000196,2]
[360544047,1746873034302,-452.36,0.000196,2]
[360544048,1746873034312,-456.95,0.000196,2]
[360544049,1746873034322,-150.04,0.000196,2]
[360544050,1746873034333,-150.0,0.000196,2]
[360544051,1746873034343,-150.0,0.000196,2]
[360544052,1746873034354,-803.1,0.000196,2]
[360544053,1746873034364,-276.66902567,0.00019621,2]
[360544054,1746873034374,-364.78232201,0.00019662,2]
[360544055,1746873034384,-160.633239,0.00019746,2]
[360544056,1746873034393,-452.28,0.000198,2]
[360544057,1746873034403,-803.1,0.000198,2]
[360544058,1746873034414,-462.85,0.000198,2]
[360544059,1746873034423,-352.66,0.000198,2]
[360544060,1746873034433,-324.9,0.000198,2]
[360544061,1746873034443,-300.04,0.000198,2]
[360544062,1746873034454,-300.08,0.000198,2]
[360544063,1746873034465,-150.0,0.000198,2]
[360544064,1746873034475,-802.35,0.000198,2]
[360544065,1746873034485,-352.66,0.000198,2]
[360544066,1746873034495,-150.0,0.000198,2]
[360544067,1746873034505,-903.28,0.000198,2]
[360544068,1746873034515,-453.57,0.000198,2]
[360544069,1746873034526,-162.47,0.000198,2]
[360544070,1746873034536,-150.0,0.000198,2]
[360544071,1746873034546,-452.08,0.000198,2]
[360544072,1746873034555,-803.1,0.000198,2]
[360544073,1746873034565,-150.04,0.000198,2]
[360544074,1746873034575,-324.8,0.000198,2]
[360544075,1746873034585,-352.66,0.000198,2]
[360544076,1746873034595,-913.9,0.000198,2]
[360544077,1746873034606,-500.0,0.00019899,2]
[360544078,1746873034616,-6952.62057273,0.00019899,2]
[360544079,1746873034626,-500.0,0.00019899,2]
[360544080,1746873034635,-214.7976622,0.00019899,2]
[360544081,1746873034646,-6952.62057273,0.00019899,2]
[360544082,1746873034656,-6952.62057273,0.00019899,2]
[360544083,1746873034665,-6952.62057273,0.00019899,2]
[360544084,1746873034676,-6952.62057273,0.00019899,2]
[360544085,1746873034686,-6952.62057273,0.000199,2]
[360544086,1746873034695,-6952.62057273,0.000199,2]
[360544087,1746873034706,-440.969,0.000199,2]
[360544088,1746873034716,-6952.62057273,0.000199,2]
[360544089,1746873034726,-6952.62057273,0.000199,2]
[360544090,1746873034735,-807.1883,0.000199,2]
[360544091,1746873034745,-1332.43552305,0.000199,2]
[360544092,1746873034756,-4006.0528,0.000199,2]
[360544093,1746873034767,-1469.8765,0.000199,2]
[360544094,1746873034777,-273.55656225,0.000199,2]
[360544095,1746873034791,-515.22406016,0.000199,2]
[360544096,1746873034817,-14.31937759,0.000199,2]
[360544097,1746873034828,-352.66,0.000199,2]
[360544098,1746873034838,-309.94,0.000199,2]
[360544099,1746873034847,-162.43,0.000199,2]
[360544100,1746873034857,-150.0,0.000199,2]
[360544101,1746873034870,-452.28,0.000199,2]
[360544102,1746873034880,-8.10430242,0.000199,2]
[360544103,1746873034900,-141.89569758,0.000199,2]
[360544104,1746873034910,-150.0,0.000199,2]
[360544105,1746873034921,-1940.0383097,0.000199,2]
[360544109,1746873038067,-386.43636904,0.000199,2]
[360544110,1746873038078,-5723.67472627,0.000199,2]
[360544111,1746873038088,-509.26981963,0.000199,2]
[360544112,1746873038100,-6443.3507531,0.000199,2]
[360544113,1746873038109,-151.0,0.0001992,2]
[360544114,1746873038119,-151.0,0.00019929,2]
[360544115,1746873038129,-151.0,0.00019941,2]
[360544116,1746873038138,-151.0,0.00019952,2]
[360544117,1746873038148,-500.35158996,0.00019973,2]
[360544118,1746873038158,-500.0,0.00019973,2]
[360544119,1746873038168,-500.0,0.00019973,2]
[360544120,1746873038178,-500.0,0.00019973,2]
[360544121,1746873038188,-500.0,0.00019973,2]
[360544122,1746873038198,-500.0,0.00019973,2]
[360544123,1746873038208,-500.0,0.00019973,2]
[360544124,1746873038218,-354.0,0.0001999,2]
[360544125,1746873038227,-3621.77120336,0.00019996,2]
[360544126,1746873038241,-406.91160864,0.00019996,2]
[360544127,1746873038251,-552.6344417,0.00019996,2]
[360544128,1746873038260,-9016.2536245,0.00019996,2]
[360544129,1746873038270,-222.9152599,0.00019996,2]
[360544130,1746873038280,-559.17710428,0.00019997,2]
[360544131,1746873038289,-400.0,0.00019998,2]
[360544132,1746873038300,-400.0,0.00019998,2]
[360544133,1746873038309,-733.12,0.00019998,2]
[360544134,1746873038319,-900.9,0.00019998,2]
[360544135,1746873038329,-558.79,0.00019998,2]
[360544136,1746873038340,-400.0,0.00019999,2]
[360544138,1746873038350,-400.0,0.00019999,2]
[360544140,1746873038359,-400.0,0.00019999,2]
[360544142,1746873038368,-400.0,0.00019999,2]
[360544144,1746873038377,-400.0,0.00019999,2]
[360544146,1746873038387,-400.0,0.00019999,2]
[360544148,1746873038397,-400.0,0.00019999,2]
[360544150,1746873038406,-400.0,0.00019999,2]
[360544152,1746873038416,-373.58911556,0.00019999,2]
[360544154,1746873038425,-400.0,0.00019999,2]
[360544156,1746873038435,-400.0,0.00019999,2]
[360544158,1746873038444,-400.0,0.00019999,2]
[360544160,1746873038455,-400.0,0.00019999,2]
[360544162,1746873038464,-400.0,0.00019999,2]
[360544164,1746873038473,-400.0,0.00019999,2]
[360544166,1746873038482,-400.0,0.00019999,2]
[360544167,1746873038491,-400.0,0.00019999,2]
[360544168,1746873038500,-400.0,0.00019999,2]
[360544169,1746873038510,-400.0,0.00019999,2]
[360544170,1746873038519,-400.0,0.00019999,2]
[360544171,1746873038529,-400.0,0.00019999,2]
[360544172,1746873038538,-400.0,0.00019999,2]
[360544173,1746873038548,-400.0,0.00019999,2]
[360544175,1746873038557,-400.0,0.00019999,2]
[360544177,1746873038567,-288.7971,0.00019999,2]
[360544179,1746873038577,-500.0,0.00019999,2]
[360544197,1746873038739,-500.0,0.00019999,2]
[360544199,1746873038751,-500.0,0.00019999,2]
[360544201,1746873038761,-500.0,0.00019999,2]
[360544203,1746873038771,-500.0,0.00019999,2]
[360544205,1746873038781,-500.0,0.00019999,2]
[360544207,1746873038791,-733.12,0.00019999,2]
[360544209,1746873038800,-426.18993412,0.00019999,2]
[360544211,1746873038809,-733.12,0.00019999,2]
[360544213,1746873038819,-733.12,0.00019999,2]
[360544215,1746873038828,-733.12,0.00019999,2]
[360544217,1746873038840,-733.12,0.00019999,2]
[360544219,1746873038850,-733.12,0.00019999,2]
[360544221,1746873038860,-733.12,0.00019999,2]
[360544223,1746873038869,-733.12,0.00019999,2]
[360544225,1746873038879,-733.12,0.00019999,2]
[360544227,1746873038888,-733.12,0.00019999,2]
[360544229,1746873038898,-733.12,0.00019999,2]
[360544231,1746873038907,-733.12,0.00019999,2]
[360544233,1746873038917,-733.12,0.00019999,2]
[360544235,1746873038928,-733.12,0.00019999,2]
[360544237,1746873038939,-733.12,0.00019999,2]
[360544239,1746873038949,-733.12,0.00019999,2]
[360544241,1746873038959,-733.12,0.00019999,2]
[360544243,1746873038968,-733.12,0.00019999,2]
[360544245,1746873038978,-733.12,0.00019999,2]
[360544247,1746873038988,-733.15721109,0.00019999,2]
[360544249,1746873038997,-900.9,0.00019999,2]
[360544251,1746873039008,-269.47,0.00019999,2]
[360544253,1746873039019,-900.9,0.00019999,2]
[360544255,1746873039028,-900.9,0.00019999,2]
[360544257,1746873039038,-900.9,0.00019999,2]
[360544258,1746873039047,-900.9,0.00019999,2]
[360544260,1746873039057,-900.9,0.00019999,2]
[360544262,1746873039066,-900.9,0.00019999,2]
[360544264,1746873039076,-900.9,0.00019999,2]
[360544266,1746873039086,-900.9,0.00019999,2]
[360544268,1746873039096,-900.9,0.00019999,2]
[360544270,1746873039105,-900.9,0.00019999,2]
[360544271,1746873039114,-900.9,0.00019999,2]
[360544272,1746873039124,-900.9,0.00019999,2]
[360544273,1746873039135,-900.9,0.00019999,2]
[360544274,1746873039145,-900.9,0.00019999,2]
[360544275,1746873039155,-900.9,0.00019999,2]
[360544276,1746873039164,-900.9,0.00019999,2]
[360544277,1746873039174,-900.9,0.00019999,2]
[360544278,1746873039184,-900.9,0.00019999,2]
[360544280,1746873039194,-802.43745083,0.00019999,2]
[360544283,1746873039207,-98.66124458,0.00019999,2]
[360544285,1746873039216,-403.65023755,0.00019999,2]
[360544287,1746873039226,-558.79,0.00019999,2]
[360544289,1746873039236,-558.79,0.00019999,2]
[360544291,1746873039246,-558.79,0.00019999,2]
[360544293,1746873039255,-558.79,0.00019999,2]
[360544295,1746873039265,-558.79,0.00019999,2]
[360544297,1746873039274,-558.79,0.00019999,2]
[360544299,1746873039284,-558.79,0.00019999,2]
[360544301,1746873039293,-558.79,0.00019999,2]
[360544303,1746873039303,-455.46,0.00019999,2]
[360544305,1746873039313,-558.79,0.00019999,2]
[360544307,1746873039322,-455.46,0.00019999,2]
[360544309,1746873039332,-292.00050747,0.00019999,2]
[360544311,1746873039344,-261.12518604,0.00019999,2]
[360544314,1746873039366,-5.66430649,0.00019999,2]
[360544316,1746873039376,-455.46,0.00019999,2]
[360544318,1746873039385,-558.79,0.00019999,2]
[360544320,1746873039395,-455.46,0.00019999,2]
[360544322,1746873039405,-558.79,0.00019999,2]
[360544324,1746873039415,-455.46,0.00019999,2]
[360544326,1746873039425,-558.79,0.00019999,2]
[360544328,1746873039435,-455.46,0.00019999,2]
[360544330,1746873039444,-558.79,0.00019999,2]
[360544332,1746873039454,-455.46,0.00019999,2]
[360544334,1746873039463,-558.79,0.00019999,2]
[360544336,1746873039473,-455.46,0.00019999,2]
[360544338,1746873039482,-455.46,0.00019999,2]
[360544340,1746873039491,-558.79,0.00019999,2]
[360544342,1746873039501,-455.46,0.00019999,2]
[360544344,1746873039513,-558.79,0.00019999,2]
[360544346,1746873039522,-455.46,0.00019999,2]
[360544348,1746873039532,-558.79,0.00019999,2]
[360544350,1746873039542,-455.46,0.00019999,2]
[360544352,1746873039552,-558.79,0.00019999,2]
[360544354,1746873039561,-455.46,0.00019999,2]
[360544356,1746873039571,-558.79571162,0.00019999,2]
[360544358,1746873039580,-455.46,0.00019999,2]
[360544360,1746873039589,-455.46,0.00019999,2]
[360544362,1746873039599,-455.46,0.00019999,2]
[360544364,1746873039608,-455.46,0.00019999,2]
[360544366,1746873039617,-455.46,0.00019999,2]
[360544368,1746873039627,-455.46,0.00019999,2]
[360544370,1746873039636,-455.46,0.00019999,2]
[360544372,1746873039647,-455.62,0.00019999,2]
[360544374,1746873039656,-273.62547742,0.00019999,2]
[360544376,1746873039665,-1400.0,0.00019999,2]
[360544378,1746873039675,-2036.5,0.00019999,2]
[360544380,1746873039684,-2036.5,0.00019999,2]
[360544382,1746873039693,-2036.5,0.00019999,2]
[360544384,1746873039702,-2036.5,0.00019999,2]
[360544386,1746873039713,-2036.5,0.00019999,2]
[360544388,1746873039722,-2036.5,0.00019999,2]
[360544390,1746873039732,-2036.5,0.00019999,2]
[360544392,1746873039742,-2036.5,0.00019999,2]
[360544394,1746873039751,-2036.5,0.00019999,2]
[360544396,1746873039762,-2036.5,0.00019999,2]
[360544398,1746873039771,-2036.5,0.00019999,2]
[360544399,1746873039781,-2036.5,0.00019999,2]
[360544401,1746873039790,-2036.5,0.00019999,2]
[360544403,1746873039800,-2036.5,0.00019999,2]
[360544405,1746873039810,-2036.5,0.00019999,2]
[360544407,1746873039820,-2036.5,0.00019999,2]
[360544409,1746873039830,-2036.5,0.00019999,2]
[360544410,1746873039842,-2036.5,0.00019999,2]
[360544411,1746873039853,-1062.28134727,0.00019999,2]
[360544412,1746873039865,-589.97551441,0.00019999,2]
[360544413,1746873039877,-384.24313832,0.00019999,2]
[360544414,1746873039887,-2036.5,0.00019999,2]
[360544415,1746873039897,-2036.5,0.00019999,2]
[360544416,1746873039906,-2036.5,0.00019999,2]
[360544417,1746873039916,-2036.5,0.00019999,2]
[360544418,1746873039926,-2036.54759774,0.00019999,2]
[360544419,1746873039935,-204.22775959,0.00019999,2]
[360544420,1746873039949,-159.82260972,0.00019999,2]
[360544421,1746873039958,-502.53082525,0.00019999,2]
[360544422,1746873039967,-42246.18215096,0.0002,2]
[360544423,1746873039977,-753511.27542737,0.0002,2]
[360544424,1746873040010,-204172.74741555,0.0002,2]
[360544425,1746873040079,-777424.00340511,0.0002,2]
[360544426,1746873040202,-151.0,0.0001992,2]
[360544427,1746873040212,-82528.05495262,0.0002,2]
[360544428,1746873040223,-305.0000025,0.0002,2]
[360544429,1746873040235,-1962.02666871,0.0002,2]
[360544430,1746873040246,-2666.2,0.0002,2]
[360544431,1746873040871,-331.07,0.0002,2]
[360544432,1746873040882,-29571.15953753,0.0002,2]
[360544433,1746873040893,-3041.58381051,0.0002,2]
[360544434,1746873040904,-395.472,0.0002,2]
[360544435,1746873040919,-1029.61234503,0.0002,2]
[360544436,1746873040931,-652.01062997,0.0002,2]
[360544437,1746873040946,-1983.63196406,0.0002,2]
[360544443,1746873043285,-606.62,0.000197,2]
[360544444,1746873043295,-352.59,0.000197,2]
[360544445,1746873043306,-150.04,0.000197,2]
[360544446,1746873043316,-1155.86,0.000197,2]
[360544447,1746873043326,-456.95,0.000197,2]
[360544448,1746873043337,-162.5,0.000197,2]
[360544449,1746873043347,-496365.44000005,0.0002,2]
[360544450,1746873043359,-271.92,0.0002,2]
[360544451,1746873043680,-101964.40889759,0.0002,2]
[360544452,1746873043857,-755.2,0.0002,2]
[360544453,1746873043868,-940.92366299,0.0002,2]
[360544454,1746873043884,-559.41141199,0.0002,2]
[360544455,1746873046077,-10079.2711442,0.000199,2]
[360544456,1746873046263,-2420.7288558,0.000199,2]
[360544457,1746873046273,-11662.42947125,0.0002,2]
[360544458,1746873046342,-14473.14263034,0.0002,2]
[360544459,1746873046353,-605.85000906,0.0002,2]
[360544460,1746873046376,-255063.53316241,0.0002,2]
[360544461,1746873046447,-138084.49770668,0.0002,2]
[360544462,1746873046458,-937.69234994,0.0002,2]
[360544463,1746873046470,-12111.79645148,0.0002,2]
[360544464,1746873046491,-2751.19166668,0.0002,2]
[360544490,1746873170913,1000.0,0.00013699,2]
[360544491,1746873172033,-226.3,0.00019351,2]
[360544492,1746873172057,-64.79909439,0.00019378,2]
[360544494,1746873182340,-158.7,0.00019378,2]
[360544495,1746873196770,-26.50090561,0.00019378,2]
[360544500,1746873437677,-291.13205033,0.00019178,2]
[360544503,1746873443988,-108.86794967,0.00019178,2]
[360544504,1746873448521,-191.13205033,0.00019178,2]
[360544506,1746873451744,-208.86794967,0.00019178,2]
[360544509,1746873473200,-171.70849689,0.00019178,2]
[360544511,1746873481344,-268.31868715,0.00019178,2]
[360544514,1746873485813,300.0,0.00017191,2]
[360544517,1746873492145,-225.62,0.00017191,2]
[360544518,1746873492186,-43.00239203,0.00019454,2]
[360544519,1746873497022,-178.94742398,0.00019454,2]
[360544520,1746873497073,168.08,0.00027397,30]
[360544522,1746873499939,-152.29118431,0.00019454,2]
[360544524,1746873505044,-151.37899968,0.00019454,2]
[360544531,1746873569812,-154.82846433,0.00019178,2]
[360544533,1746873574316,-36.20153567,0.00019178,2]
[360544541,1746873642277,150.0,0.00019,5]
[360544558,1746873791371,-233.09255732,0.00019065,2]
[360544562,1746873796772,-269.29409299,0.00019065,2]
[360544565,1746873800262,-291.4059626,0.00019065,2]
[360544567,1746873804448,-206.20738709,0.00019065,2]
[360544568,1746873804470,-150.0,0.00019108,2]
[360544571,1746873809593,-383.89,0.00019074,2]
[360544572,1746873809616,-469.31621384,0.00019074,2]
[360544575,1746873812386,-251.79378616,0.00019074,2]
[360544576,1746873815734,-563.8736581,0.00019074,2]
[360544578,1746873822252,-79.0163419,0.00019074,2]
[360544592,1746873896995,250.0,0.00017,2]
[360544593,1746873899785,-206.0840299,0.00019,2]
[360544594,1746873901499,171.41,0.00016712,2]
[360544596,1746873903289,-93.9159701,0.00019,2]
[360544609,1746874001973,1068.9629146,0.00019662,30]
[360544611,1746874019060,1000.0,0.000249,30]
[360544613,1746874030942,1553.0,0.0003,120]
[360544621,1746874102931,162.32,0.00015236,2]
[360544643,1746874232256,-153.4,0.00019045,2]
[360544644,1746874232266,-403.3554435,0.000196,2]
[360544645,1746874232276,-151.0,0.00019662,2]
[360544646,1746874232286,-161.49,0.00019662,2]
[360544647,1746874232296,-230.7545565,0.00019802,2]
[360544648,1746874232308,-28.4254435,0.00019802,2]
[360544649,1746874232322,-207.4,0.00019888,2]
[360544650,1746874232331,-300.0,0.0001989,2]
[360544651,1746874232342,-300.0,0.0001989,2]
[360544652,1746874232352,-1200.0,0.0001989,2]
[360544653,1746874232364,-300.0,0.0001989,2]
[360544654,1746874232374,-428.5389521,0.00019891,2]
[360544655,1746874232387,-312.15006008,0.00019891,2]
[360544656,1746874232578,-526.56267807,0.00019891,2]
[360544662,1746874238153,-260.5148479,0.00019891,2]
[360544663,1746874238367,-5458.30720099,0.00019891,2]
[360544664,1746874238380,-5513.92626086,0.00019891,2]
[360544665,1746874238390,-12000.0,0.000199,2]
[360544666,1746874238402,-8685.45536727,0.000199,2]
[360544667,1746874238412,-151.4468433,0.000199,2]
[360544668,1746874238422,-1622.46894886,0.000199,2]
[360544669,1746874238432,-198.45468826,0.000199,3]
[360544670,1746874238443,-500.0,0.00019973,2]
[360544671,1746874238452,-500.0,0.00019973,2]
[360544672,1746874238462,-500.0,0.00019973,2]
[360544673,1746874238472,-331.9124565,0.00019996,2]
[360544675,1746874238482,-19928.5964034,0.00019996,2]
[360544677,1746874238491,-201.802,0.00019998,2]
[360544678,1746874238502,-302.21987959,0.00019998,2]
[360544679,1746874238513,-414.21026372,0.00019998,2]
[360544680,1746874238524,-198.1274333,0.00019998,2]
[360544682,1746874238533,-258.24,0.00019999,2]
[360544684,1746874238543,-155.79063669,0.00019999,2]
[360544685,1746874238553,-500.0,0.00019999,2]
[360544687,1746874238563,-400.0,0.00019999,2]
[360544688,1746874238572,-400.0,0.00019999,2]
[360544689,1746874238582,-400.0,0.00019999,2]
[360544690,1746874238592,-353.84,0.00019999,2]
[360544691,1746874238603,-400.0,0.00019999,2]
[360544692,1746874238612,-301.22295352,0.00019999,2]
[360544693,1746874238622,-532.32904142,0.00019999,2]
[360544694,1746874238633,-168.33565755,0.00019999,2]
[360544695,1746874238642,-334.40946165,0.00019999,2]
[360544696,1746874238652,-500.0,0.00019999,2]
[360544697,1746874238662,-400.0,0.00019999,2]
[360544699,1746874238671,-400.0,0.00019999,2]
[360544701,1746874238681,-400.0,0.00019999,2]
[360544703,1746874238690,-400.0,0.00019999,2]
[360544704,1746874238700,-400.0,0.00019999,2]
[360544705,1746874238710,-407.06,0.00019999,2]
[360544706,1746874238719,-400.0,0.00019999,2]
[360544707,1746874238729,-400.0,0.00019999,2]
[360544708,1746874238739,-400.0,0.00019999,2]
[360544709,1746874238749,-334.14,0.00019999,2]
[360544710,1746874238761,-400.0,0.00019999,2]
[360544711,1746874238772,-503.56437261,0.00019999,2]
[360544712,1746874238781,-1634.98865125,0.0002,2]
[360544713,1746874238793,-28471.55615978,0.0002,2]
[360544718,1746874240414,-5198.27975,0.0002,2]
[360544732,1746874244424,-536.00197511,0.0002,2]
[360544733,1746874244693,-1086.74581714,0.0002,2]
[360544734,1746874246259,-251.97301991,0.0002,2]
[360544735,1746874267639,2000.0,0.0003,30]
[360544736,1746874269955,2000.0,0.0003,30]
[360544737,1746874276758,2000.0,0.0003,30]
[360544738,1746874279890,2000.0,0.0003,30]
[360544739,1746874287972,2000.0,0.0003,30]
[360544742,1746874333676,152.0,0.00019093,2]
[360544743,1746874347223,187.3179729,0.00013699,2]
[360544744,1746874347245,812.6820271,0.00013699,2]
[360544746,1746874484555,173.19,0.00028574,120]
[360544749,1746874640626,-390.584626,0.00017119,2]
[360544752,1746874748126,2313.61973296,7.945e-05,2]
[360544753,1746874748154,7823.79085904,7.945e-05,2]
[360544758,1746874963365,521.0,0.0003,90]
[360544760,1746875053667,-190.7,0.00017119,2]
[360544781,1746875166378,400.0,0.0003,120]
[360544782,1746875175088,-309.3,0.00017119,2]
[360544783,1746875175114,-152.405374,0.00017119,2]
[360544784,1746875175140,-200.0,0.00017226,2]
[360544785,1746875175166,-200.0,0.00017333,2]
[360544786,1746875175191,-200.0,0.00017818,2]
[360544787,1746875175215,-200.0,0.00018543,2]
[360544788,1746875175238,-1255.64,0.00018545,2]
[360544789,1746875175261,-388.68,0.00018658,2]
[360544790,1746875175285,-150.0,0.00018748,2]
[360544791,1746875175308,-1200.0,0.0001883,2]
[360544792,1746875175332,-300.0,0.0001883,2]
[360544793,1746875175356,-300.0,0.0001883,2]
[360544794,1746875175378,-250.0,0.00018831,2]
[360544795,1746875175401,-250.0,0.00018831,2]
[360544796,1746875175425,-200.0,0.00018831,2]
[360544797,1746875175449,-250.0,0.00018831,2]
[360544798,1746875175474,-200.0,0.00018831,2]
[360544799,1746875175498,-200.0,0.00018976,2]
[360544800,1746875175522,-207.4,0.00019008,2]
[360544801,1746875175546,-23586.574626,0.0001902,2]
[360544809,1746875347870,-1000.0,0.00018737,2]
[360544810,1746875347902,-157.51,0.00018737,2]
[360544811,1746875347944,-2751.0,0.00018757,2]
[360544812,1746875347985,-250.0,0.00018882,2]
[360544813,1746875348011,-200.0,0.00018882,2]
[360544814,1746875348039,-250.0,0.00018967,2]
[360544815,1746875348067,-207.4,0.00019008,2]
[360544825,1746875415438,-250.0,0.00018999,2]
[360544831,1746875431372,-635.90383186,0.00018999,2]
[360544832,1746875431425,-314.09616814,0.00018999,2]
[360544833,1746875431437,-8177.50250542,0.00019,2]
[360544834,1746875431447,-250.0,0.00019004,2]
[360544835,1746875431457,-151.53,0.00019008,2]
[360544836,1746875431466,-668.65185757,0.00019008,2]
[360544837,1746875431476,-300.0,0.00019019,2]
[360544838,1746875431486,-313.425374,0.0001902,2]
[360544839,1746875431496,-913.9,0.00019041,2]
[360544840,1746875431508,-457.06,0.00019041,2]
[360544841,1746875431518,-173.19,0.00019049,2]
[360544842,1746875431528,-190.7,0.00019054,2]
[360544843,1746875431537,-267.97,0.0001907,2]
[360544844,1746875431547,-98.0,0.00019093,2]
[360544845,1746875431557,-164.42,0.00019094,2]
[360544846,1746875431566,-10666.71,0.00019117,2]
[360544847,1746875431575,-152.29118431,0.00019178,2]
[360544848,1746875431585,-904.56,0.00019178,2]
[360544849,1746875431595,-164.92,0.00019178,2]
[360544850,1746875431606,-352.66,0.00019178,2]
[360544851,1746875431622,-324.24,0.00019178,2]